[Event "2nd Late Dr Abul K C Chess-ch A 2022"]
[Site "Dhaka"]
[Date "2022.07.06"]
[Round "6.6"]
[White "Manon, Reja Neer"]
[Black "Khan, Nazrana"]
[Result "0-1"]
[ECO "B41"]
[WhiteElo "2089"]
[BlackElo "1829"]
[Annotator "TA"]
[PlyCount "78"]
[EventDate "2022.07.03"]
[EventCountry "BAN"]
[SourceTitle "playchess.com"]
[Source "ChessBase"]
[SourceQuality "1"]
[TimeControl "5400+30"]

{[%evp 13,78,61,59,59,66,60,71,43,54,44,62,27,42,0,133,122,128,88,100,44,76,54,85,-6,2,-84,-116,-262,-247,-254,-175,-231,94,63,82,79,72,73,90,0,0,0,0,-539,-546,-622,-679,-683,-678,-666,-677,-675,-649,-930,-859,-1371,-461,-442,14,-29989,-29990,-29996,-29996,-29996,-29996,-29997,-29997]} 1. e4 {[%emt 0:00:02]} c5 {[%emt 0:00:51]} 2. Nf3 {[%emt 0:00:04]} e6 {[%emt 0:00:12]} 3. d4 {[%emt 0:00:04]} cxd4 {[%emt 0:00:08]} 4. Nxd4 {[%emt 0:00:03]} a6 {[%emt 0:00:11]} 5. c4 {[%emt 0:01:07]} d6 {[%emt 0:01:02]} 6. Nc3 {[%emt 0:00:29]} Nf6 {[%emt 0:00:58]} 7. Be3 {[%emt 0:00:30]} Qc7 {[%emt 0:01:27]} 8. Be2 {[%emt 0:00:27] B41: Sicilian: Kan Variation: 5 c4.} Nbd7 {[%emt 0:00:56] has lost popularity (8...Be7).} 9. O-O {[%emt 0:01:19]} b6 {[%emt 0:00:28]} 10. f4 {[%emt 0:12:58] White is better.} Bb7 {[%emt 0:01:00]} 11. Qc2 {[%emt 0:00:19]} Rc8 {[%emt 0:01:54]} 12. Rae1 {[%emt 0:11:10]} Be7 {[%emt 0:01:17] [#]} 13. g4 $146 {[%emt 0:08:16][%cal Bg2g4,Bg4g5][%mdl 32] Threatens to win with g5.} ({Predecessor:} 13. Kh1 Qb8 14. Nf3 O-O 15. Bd3 Nc5 16. Bxc5 Rxc5 17. e5 Nd7 18. Bxh7+ Kh8 19. exd6 Bxd6 {0-1 (27) Loderbauer,G (1831)-Kiener,G (2019) Bayern 2008}) 13... O-O {[%emt 0:08:58]} (13... h6 $11) 14. g5 $16 {[%emt 0:01:36]} Ne8 {[%emt 0:00:24]} 15. Qb1 {[%emt 0:16:39]} Qb8 {[%emt 0:01:54]} 16. Nf3 {[%emt 0:03:46]} (16. f5 $16) 16... Bd8 {[%emt 0:08:08]} 17. h4 {[%emt 0:01:44]} g6 {[%emt 0:02:26]} 18. h5 {[%emt 0:02:48]} ({Better is} 18. Nh2 $16) 18... gxh5 $11 {[%emt 0:01:15]} 19. f5 {[%emt 0:15:07]} (19. Rd1 $11) 19... d5 $1 $17 {[%emt 0:04:34]} 20. Kg2 {[%emt 0:06:03] Prevents Qg3+.} (20. cxd5 $17 {was necessary.} Qg3+ 21. Kh1) 20... dxe4 $19 {[%emt 0:03:50]} 21. Nh4 {[%emt 0:01:45]} Nd6 {[%emt 0:03:13]} 22. Qd1 {[%emt 0:04:54]} (22. b3 $142) 22... exf5 $2 {[%emt 0:03:29]} (22... Ne5 $19 23. Bf4 Nd3 24. Bxd3 exd3+ 25. Kh3 d2 26. Qxd2 e5) 23. Bf4 $1 $16 {[%emt 0:02:00]} Bc7 {[%emt 0:03:03][%cal Od6c4,Bd8c7,Bc7d6,Bd6c5,Bc5f8][%mdl 32] White must now prevent ...Nxc4!} 24. Bxd6 {[%emt 0:01:16]} Bxd6 {[%emt 0:00:13]} 25. Nxf5 {[%emt 0:00:04]} Rc6 {[%emt 0:03:12] [#]} 26. Qd4 {[%emt 0:05:16]} (26. Nxe4 $6 Ne5 27. Qd2 (27. Bxh5 $2 Bb4 $19) (27. Nfxd6 $2 Rxd6 28. Qc2 f5 $19) 27... Kh8 $15) (26. Nh6+ $1 $16 Kg7 27. Nd5 (27. Bxh5 Ne5 $17)) 26... Ne5 $11 {[%emt 0:48:27] aiming for ...Bc5.} 27. Nd5 {[%emt 0:00:47]} ({Reject} 27. Nh6+ Kg7 28. Rf5 (28. Nxe4 $2 Bc5 $19) 28... f6 $17) 27... Bc5 {[%emt 0:00:00]} 28. Nde7+ $2 {[%emt 0:01:41][%mdl 8192]} (28. Nfe7+ $11 {and White has nothing to worry.} Kh8 29. Nxc6 Bxd4 30. Nxb8) 28... Kh8 $19 {[%emt 0:00:00]} 29. Nxc6 {[%emt 0:00:02]} Bxc6 {[%emt 0:00:00] This bishop pair is nice.} 30. Qc3 {[%emt 0:01:04]} Rg8 {[%emt 0:00:00]} 31. b4 {[%emt 0:01:59]} Rxg5+ {[%emt 0:00:00]} 32. Kh3 {[%emt 0:00:31]} Bf8 {[%emt 0:00:00] ...Bd7 is the strong threat.} 33. Qe3 {[%emt 0:00:36]} f6 {[%emt 0:00:00] Hoping for ...Bd7.} 34. Rf2 {[%emt 0:00:29]} Nf3 {[%emt 0:00:00]} (34... Bxb4 $142 35. Rb1 {[#]} Qc8 $1) 35. Bxf3 {[%emt 0:00:31]} exf3 {[%emt 0:00:00]} (35... Rxf5 $19 36. Be2 Rg5) 36. Qd3 {[%emt 0:00:29][%mdl 8192]} (36. Qe6 $11 Qd8 37. Qxc6 (37. Rd1 $2 Qxd1 38. Qxf6+ Bg7 $19) 37... Rxf5 38. Rxf3 (38. Re8 Qd4 $11)) 36... Qf4 {[%emt 0:00:00] Black mates.} 37. Re6 {[%emt 0:00:32]} Qg4+ {[%emt 0:00:00]} 38. Kh2 {[%emt 0:00:01]} Qg1+ {[%emt 0:00:00]} 39. Kh3 {[%emt 0:00:02]} Qxf2 {[%emt 0:00:00] Weighted Error Value: White=0.81/Black=0.64} 0-1

[Event "2nd Late Dr Abul K C Chess-ch A 2022"]
[Site "Dhaka"]
[Date "2022.07.07"]
[Round "7.1"]
[White "Rahman, Ziaur"]
[Black "Mohammad Minhaz Uddin"]
[Result "1/2-1/2"]
[ECO "D12"]
[WhiteElo "2424"]
[BlackElo "2260"]
[Annotator "TA"]
[PlyCount "69"]
[EventDate "2022.07.03"]
[EventCountry "BAN"]
[SourceTitle "playchess.com"]
[Source "ChessBase"]
[SourceQuality "1"]
[TimeControl "5400+30"]

{[%evp 15,69,15,18,16,19,12,21,16,26,15,22,18,20,23,24,0,23,0,25,0,43,0,0,0,0,0,0,-45,-43,-29,-32,-44,-47,-39,-39,-35,-31,-36,-35,-33,-22,-19,-9,-16,-14,-10,0,-11,-12,-12,-25,-43,-44,-49,-43,-56]} 1. Nf3 {[%emt 0:01:09]} d5 {[%emt 0:00:03]} 2. d4 {[%emt 0:02:18]} Nf6 {[%emt 0:00:04]} 3. c4 {[%emt 0:01:37]} c6 {[%emt 0:00:14]} 4. e3 {[%emt 0:00:35]} Bf5 {[%emt 0:00:06]} 5. Nc3 {[%emt 0:00:07]} e6 {[%emt 0:00:03]} 6. Nh4 {[%emt 0:00:06]} Be4 {[%emt 0:00:02]} 7. f3 {[%emt 0:00:08]} Bg6 {[%emt 0:00:03]} 8. Qb3 {[%emt 0:00:11]} Qc7 {[%emt 0:00:06]} 9. Bd2 {[%emt 0:00:42] D12: Slav Defence: 3 Nf3 Nf6 4 e3 Bf5.} Be7 {[%emt 0:03:17]} 10. Nxg6 {[%emt 0:02:32]} hxg6 {[%emt 0:00:03]} 11. O-O-O {[%emt 0:00:08] The position is equal.} a6 {[%emt 0:00:10]} 12. cxd5 {[%emt 0:03:22]} cxd5 {[%emt 0:00:03]} 13. Kb1 {[%emt 0:00:14]} Nc6 {[%emt 0:00:05]} 14. Rc1 {[%emt 0:00:45]} Rb8 {[%emt 0:01:00]} 15. Ne2 {[%emt 0:06:54]} Bd6 {[%emt 0:00:15]} 16. g4 {[%emt 0:02:09]} Nd7 {[%emt 0:04:33]} 17. e4 {[%emt 0:04:51]} Na5 {[%emt 0:05:18] [#]} (17... Nb6 $5 {[%cal Rb6c4]}) 18. Bxa5 $146 {[%emt 0:02:05]} ({Don't play} 18. Rxc7 Nxb3 19. Rc2 Nxd2+ 20. Rxd2 dxe4 21. fxe4 Nf6 $17) (18. Qd3 {is interesting.} Nc4 19. Ka1 Qb6 20. Bc3) ({Predecessor:} 18. Qd1 Nc4 19. e5 Be7 20. f4 Qb6 21. Rxc4 dxc4 22. Bg2 Rd8 23. Qc2 Nb8 24. f5 gxf5 25. gxf5 exf5 26. Qxf5 {0-1 (41) Rahman,Z (2429)-Idani,P (2614) Krasnaya Polyana 2021}) 18... Qxa5 {[%emt 0:00:02]} 19. e5 {[%emt 0:00:53]} Be7 {[%emt 0:00:14]} 20. f4 {[%emt 0:00:44][%cal Of4f5]} Nb6 {[%emt 0:02:55]} 21. Ng3 {[%emt 0:03:07]} Qb4 {[%emt 0:00:50]} 22. Qxb4 {[%emt 0:02:09]} Bxb4 {[%emt 0:00:03]} 23. Rd1 {[%emt 0:10:24] Inhibits Bd2.} Rh4 {[%emt 0:02:09]} 24. a3 {[%emt 0:02:37]} Be7 {[%emt 0:00:30]} 25. h3 {[%emt 0:02:03]} Rc8 {[%emt 0:00:35]} 26. Rh2 {[%emt 0:01:38][%cal Bh1h2,Bh2f2,Bf2f3,Bf3b3][%mdl 32]} Kd7 {[%emt 0:02:29]} 27. Rf2 {[%emt 0:02:20]} Rhh8 {[%emt 0:01:00]} 28. Rf3 {[%emt 0:00:21]} Rc7 {[%emt 0:02:55]} 29. f5 {[%emt 0:02:40]} gxf5 {[%emt 0:00:15]} 30. gxf5 {[%emt 0:00:02]} Bg5 {[%emt 0:00:26]} 31. Rb3 {[%emt 0:04:18]} Nc8 {[%emt 0:08:37]} 32. Bg2 {[%emt 0:01:11]} Ne7 {[%emt 0:01:14]} 33. Rf3 {[%emt 0:02:21]} g6 {[%emt 0:05:32][%cal Rg6f5]} 34. fxe6+ {[%emt 0:01:55]} fxe6 {[%emt 0:00:14]} 35. Rf7 {[%emt 0:02:39] Weighted Error Value: White=0.08 (flawless) /Black=0.06 (flawless)} 1/2-1/2

[Event "2nd Late Dr Abul K C Chess-ch A 2022"]
[Site "Dhaka"]
[Date "2022.07.07"]
[Round "7.2"]
[White "Khan, Nazrana"]
[Black "Subrota, Biswas"]
[Result "0-1"]
[ECO "E55"]
[WhiteElo "1829"]
[BlackElo "2253"]
[Annotator "RC"]
[PlyCount "29"]
[EventDate "2022.07.03"]
[EventCountry "BAN"]
[SourceTitle "playchess.com"]
[Source "ChessBase"]
[SourceQuality "1"]
[TimeControl "5400+30"]

1. d4 {[%emt 0:01:30]} Nf6 {[%emt 1:31:00]} 2. c4 {[%emt 0:00:17]} e6 {[%emt 0:00:00]} 3. Nc3 {[%emt 0:00:09]} Bb4 {[%emt 0:00:00]} 4. e3 {[%emt 0:00:25]} O-O {[%emt 0:00:00]} 5. Bd3 {[%emt 0:00:30]} d5 {[%emt 0:00:00]} 6. Nf3 {[%emt 0:01:10]} dxc4 {[%emt 0:00:00]} 7. Bxc4 {[%emt 0:00:26]} c5 {[%emt 0:00:00]} 8. O-O {[%emt 0:03:02]} cxd4 {[%emt 0:00:00]} 9. exd4 {[%emt 0:01:16]} b6 {[%emt 0:00:00]} 10. a3 {[%emt 0:09:55]} Bxc3 {[%emt 0:00:00]} 11. bxc3 {[%emt 0:00:15]} Qc7 {[%emt 0:00:00]} 12. Qb3 {[%emt 0:04:01]} Bb7 {[%emt 0:00:00]} 13. Be2 {[%emt 0:00:56]} Nc6 {[%emt 0:00:00]} 14. h3 {[%emt 0:04:41]} Rac8 {[%emt 0:00:00]} 15. Bb2 {[%emt 0:01:29]} 0-1

[Event "2nd Late Dr Abul K C Chess-ch A 2022"]
[Site "Dhaka"]
[Date "2022.07.07"]
[Round "7.5"]
[White "abu, Hanif"]
[Black "Islam, Khandaker Aminul"]
[Result "1-0"]
[ECO "A49"]
[WhiteElo "2024"]
[BlackElo "2182"]
[Annotator "RC"]
[PlyCount "147"]
[EventDate "2022.07.03"]
[EventCountry "BAN"]
[SourceTitle "playchess.com"]
[Source "ChessBase"]
[SourceQuality "1"]
[TimeControl "5400+30"]

1. d4 {[%emt 0:08:53]} c5 {[%emt 0:00:08]} 2. c3 {[%emt 0:00:05]} b6 {[%emt 0:00:13]} 3. Nf3 {[%emt 0:00:19]} Bb7 {[%emt 0:00:14]} 4. g3 {[%emt 0:00:08]} Nf6 {[%emt 0:00:35]} 5. Bg2 {[%emt 0:00:06]} g6 {[%emt 0:00:39]} 6. O-O {[%emt 0:00:08]} Bg7 {[%emt 0:00:05]} 7. Na3 {[%emt 0:00:04]} O-O {[%emt 0:00:32]} 8. Re1 {[%emt 0:02:04]} d6 {[%emt 0:00:20]} 9. Bg5 {[%emt 0:03:57]} Nbd7 {[%emt 0:00:16]} 10. Qc1 {[%emt 0:00:15]} Re8 {[%emt 0:00:44]} 11. h3 {[%emt 0:01:10]} Rc8 {[%emt 0:01:05]} 12. Qd1 {[%emt 0:00:58]} h6 {[%emt 0:00:20]} 13. Be3 {[%emt 0:00:22]} Qc7 {[%emt 0:01:19]} 14. Rc1 {[%emt 0:00:16]} Qb8 {[%emt 0:00:35]} 15. Nh2 {[%emt 0:01:12]} Bxg2 {[%emt 0:00:08]} 16. Kxg2 {[%emt 0:00:48]} Qb7+ {[%emt 0:00:30]} 17. f3 {[%emt 0:00:31]} cxd4 {[%emt 0:00:31]} 18. Bxd4 {[%emt 0:00:33]} e5 {[%emt 0:01:24]} 19. Bf2 {[%emt 0:00:19]} d5 {[%emt 0:00:38]} 20. Ng4 {[%emt 0:00:15]} h5 {[%emt 0:00:46]} 21. Nxf6+ {[%emt 0:01:29]} Nxf6 {[%emt 0:00:02]} 22. Qd2 {[%emt 0:01:09]} Re6 {[%emt 0:00:53]} 23. Rcd1 {[%emt 0:00:48]} Rec6 {[%emt 0:15:44]} 24. Be3 {[%emt 0:00:13]} Bf8 {[%emt 0:02:30]} 25. Nb1 {[%emt 0:00:15]} d4 {[%emt 0:12:16]} 26. cxd4 {[%emt 0:02:57]} Rc2 {[%emt 0:05:30]} 27. Qd3 {[%emt 0:00:03]} e4 {[%emt 0:01:07]} 28. fxe4 {[%emt 0:00:03]} Nxe4 {[%emt 0:01:35]} 29. d5 {[%emt 0:00:09]} Qe7 {[%emt 0:10:06]} 30. Rc1 {[%emt 0:01:35]} Rxc1 {[%emt 0:04:16]} 31. Rxc1 {[%emt 0:00:19]} Re8 {[%emt 0:00:36]} 32. Bg1 {[%emt 0:03:45]} Qg5 {[%emt 0:03:45]} 33. Rd1 {[%emt 0:02:17]} Bd6 {[%emt 0:00:37]} 34. h4 {[%emt 0:07:11]} Qg4 {[%emt 0:08:00]} 35. Qf3 {[%emt 0:01:02]} Nxg3 {[%emt 0:01:25]} 36. Qxg4 {[%emt 0:00:31]} hxg4 {[%emt 0:00:01]} 37. Nc3 {[%emt 0:02:57]} Nxe2 {[%emt 0:00:51]} 38. Nb5 {[%emt 0:00:16]} Be5 {[%emt 0:05:53]} 39. d6 {[%emt 0:02:59]} Nf4+ {[%emt 0:00:13]} 40. Kf1 {[%emt 0:00:44]} Ne6 {[%emt 0:00:17]} 41. d7 {[%emt 0:00:03]} Rf8 {[%emt 0:10:34]} 42. Nxa7 {[%emt 0:00:07]} Bc7 {[%emt 0:00:18]} 43. Nc6 {[%emt 0:01:35]} f5 {[%emt 0:03:36]} 44. Bd4 {[%emt 0:00:30]} Kf7 {[%emt 0:06:28]} 45. Be5 {[%emt 0:01:04]} Bd8 {[%emt 0:00:47]} 46. Bc3 {[%emt 0:02:46]} Bc7 {[%emt 0:02:12]} 47. Bb4 {[%emt 0:01:13]} Rh8 {[%emt 0:01:09]} 48. Bc3 {[%emt 0:02:27]} Ra8 {[%emt 0:00:39]} 49. a3 {[%emt 0:02:29]} Nd8 {[%emt 0:00:48]} 50. Nd4 {[%emt 0:00:37]} Be5 {[%emt 0:01:01]} 51. Re1 {[%emt 0:04:54]} Bf6 {[%emt 0:01:03]} 52. h5 {[%emt 0:00:08]} Ra7 {[%emt 0:00:30]} 53. hxg6+ {[%emt 0:00:34]} Kxg6 {[%emt 0:00:20]} 54. Ne6 {[%emt 0:01:57]} Bxc3 {[%emt 0:00:13]} 55. bxc3 {[%emt 0:00:06]} Nf7 {[%emt 0:01:09]} 56. Nf4+ {[%emt 0:01:45]} Kf6 {[%emt 0:01:04]} 57. Nd5+ {[%emt 0:00:22]} Kg7 {[%emt 0:00:00]} 58. Re7 {[%emt 0:01:12]} Ra8 {[%emt 0:00:00]} 59. Nxb6 {[%emt 0:00:39]} Rd8 {[%emt 0:00:00]} 60. c4 {[%emt 0:00:24]} Kf8 {[%emt 0:00:44]} 61. Re6 {[%emt 0:00:02]} Ng5 {[%emt 0:00:31]} 62. Re5 {[%emt 0:01:06]} Nf3 {[%emt 0:00:32]} 63. Rxf5+ {[%emt 0:00:41]} Ke7 {[%emt 0:00:01]} 64. Rd5 {[%emt 0:00:07]} Ke6 {[%emt 0:00:22]} 65. c5 {[%emt 0:01:27]} Ne5 {[%emt 0:02:20]} 66. Rd6+ {[%emt 0:00:20]} Ke7 {[%emt 0:00:00]} 67. Nd5+ {[%emt 0:00:24]} Kf7 {[%emt 0:00:00]} 68. c6 {[%emt 0:01:09]} Nxc6 {[%emt 0:00:00]} 69. Rxc6 {[%emt 0:00:01]} Rxd7 {[%emt 0:00:00]} 70. Rc7 {[%emt 0:00:01]} Rxc7 {[%emt 0:00:00]} 71. Nxc7 {[%emt 0:00:33]} Kf6 {[%emt 0:00:00]} 72. Nb5 {[%emt 0:00:01]} Ke5 {[%emt 0:03:30]} 73. Nc3 {[%emt 0:00:03]} Kd4 {[%emt 0:00:00]} 74. a4 {[%emt 0:43:38]} 1-0

[Event "2nd Late Dr Abul K C Chess-ch A 2022"]
[Site "Dhaka"]
[Date "2022.07.07"]
[Round "7.6"]
[White "Rahman, Syed Mahfuzur"]
[Black "Jamal Uddin"]
[Result "1-0"]
[ECO "D27"]
[WhiteElo "2122"]
[BlackElo "2081"]
[Annotator "RC"]
[PlyCount "63"]
[EventDate "2022.07.03"]
[EventCountry "BAN"]
[SourceTitle "playchess.com"]
[Source "ChessBase"]
[SourceQuality "1"]
[TimeControl "5400+30"]

1. d4 {[%emt 1:31:00]} d5 {[%emt 0:01:20]} 2. c4 {[%emt 0:00:07]} Nf6 {[%emt 0:02:29]} 3. Nc3 {[%emt 0:06:46]} dxc4 {[%emt 0:02:14]} 4. Nf3 {[%emt 0:02:08]} e6 {[%emt 0:00:58]} 5. e3 {[%emt 1:23:54]} a6 {[%emt 0:01:15]} 6. a4 {[%emt 0:02:42]} c5 {[%emt 0:01:50]} 7. Bxc4 {[%emt 0:00:07]} Nbd7 {[%emt 1:23:54]} 8. O-O {[%emt 1:21:03]} Be7 {[%emt 0:00:27]} 9. Qe2 {[%emt 0:06:11]} O-O {[%emt 0:02:33]} 10. Rd1 {[%emt 0:08:32]} Qc7 {[%emt 0:02:55]} 11. Bd2 {[%emt 0:04:16]} b6 {[%emt 0:02:42]} 12. Rac1 {[%emt 0:02:12]} Bb7 {[%emt 0:01:12]} 13. Ba2 {[%emt 0:05:49]} Bc6 {[%emt 0:02:30]} 14. e4 {[%emt 0:01:31]} Rfe8 {[%emt 0:05:34]} 15. e5 {[%emt 0:18:26]} Nd5 {[%emt 0:09:31]} 16. Nxd5 {[%emt 0:00:39]} exd5 {[%emt 0:00:15]} 17. e6 {[%emt 0:00:42]} fxe6 {[%emt 0:01:05]} 18. Qxe6+ {[%emt 0:01:56]} Kh8 {[%emt 0:00:15]} 19. Re1 {[%emt 0:02:55]} Bd6 {[%emt 0:24:46]} 20. Qh3 {[%emt 0:07:06]} Nf6 {[%emt 0:04:43]} 21. Bb1 {[%emt 0:04:07]} Bf4 {[%emt 0:04:30]} 22. Bxf4 {[%emt 0:04:00]} Rxe1+ {[%emt 0:02:46]} 23. Rxe1 {[%emt 0:00:10]} Qxf4 {[%emt 0:00:07]} 24. Ne5 {[%emt 0:00:29]} Be8 {[%emt 0:00:35]} 25. Bg6 {[%emt 0:10:57]} Qh6 {[%emt 0:10:27]} 26. Qxh6 {[%emt 0:01:21]} gxh6 {[%emt 0:00:02]} 27. Bxe8 {[%emt 0:00:50]} Rxe8 {[%emt 0:00:11]} 28. a5 {[%emt 0:00:02]} c4 {[%emt 0:02:15]} 29. Nf7+ {[%emt 0:00:44]} Kg7 {[%emt 0:00:02]} 30. Rxe8 {[%emt 0:00:05]} Nxe8 {[%emt 0:13:23]} 31. axb6 {[%emt 0:00:08]} Nf6 {[%emt 0:00:00]} 32. Ne5 {[%emt 0:00:25]} 1-0

[Event "2nd Late Dr Abul K C Chess-ch A 2022"]
[Site "Dhaka"]
[Date "2022.07.08"]
[Round "8.1"]
[White "Mohammad Minhaz Uddin"]
[Black "Subrota, Biswas"]
[Result "0-1"]
[ECO "C07"]
[WhiteElo "2260"]
[BlackElo "2253"]
[Annotator "RC"]
[PlyCount "87"]
[EventDate "2022.07.03"]
[EventCountry "BAN"]
[SourceTitle "playchess.com"]
[Source "ChessBase"]
[SourceQuality "1"]
[TimeControl "5400+30"]

1. e4 {[%emt 0:00:04]} e6 {[%emt 0:00:14]} 2. d4 {[%emt 0:00:04]} d5 {[%emt 0:00:19]} 3. Nd2 {[%emt 0:00:42]} c5 {[%emt 0:00:31]} 4. exd5 {[%emt 0:00:18]} Qxd5 {[%emt 0:02:44]} 5. Ngf3 {[%emt 0:00:27]} cxd4 {[%emt 0:00:02]} 6. Bc4 {[%emt 0:00:10]} Qd6 {[%emt 0:00:08]} 7. O-O {[%emt 0:00:07]} Nc6 {[%emt 0:00:40]} 8. Re1 {[%emt 0:00:40]} Be7 {[%emt 0:01:30]} 9. Nb3 {[%emt 0:02:20]} e5 {[%emt 0:03:35]} 10. Nxe5 {[%emt 0:06:17]} Nxe5 {[%emt 0:00:24]} 11. Bf4 {[%emt 0:00:03]} f6 {[%emt 0:01:02]} 12. Bxg8 {[%emt 0:07:43]} Rxg8 {[%emt 0:00:03]} 13. Qh5+ {[%emt 0:00:09]} g6 {[%emt 0:01:40]} 14. Qxh7 {[%emt 0:00:08]} Be6 {[%emt 0:00:33]} 15. Bg3 {[%emt 0:05:51]} g5 {[%emt 0:03:15]} 16. Rad1 {[%emt 0:06:14]} Bxb3 {[%emt 0:02:09]} 17. axb3 {[%emt 0:00:19]} O-O-O {[%emt 0:02:03]} 18. Bxe5 {[%emt 0:01:02]} fxe5 {[%emt 0:00:08]} 19. Qf5+ {[%emt 0:00:07]} Rd7 {[%emt 0:07:00]} 20. Rxe5 {[%emt 0:00:24]} Bd8 {[%emt 0:05:42]} 21. Re6 {[%emt 0:19:31]} Qf8 {[%emt 0:01:43]} 22. Qg4 {[%emt 0:04:27]} Bb6 {[%emt 0:00:59]} 23. Rd3 {[%emt 0:03:06]} Qf7 {[%emt 0:01:56]} 24. Re5 {[%emt 0:14:43]} Re8 {[%emt 0:06:09]} 25. Rxe8+ {[%emt 0:05:41]} Qxe8 {[%emt 0:00:15]} 26. g3 {[%emt 0:00:03]} Qe1+ {[%emt 0:05:38]} 27. Kg2 {[%emt 0:00:03]} Qc1 {[%emt 0:01:04]} 28. c4 {[%emt 0:08:56]} Qxb2 {[%emt 0:02:35]} 29. Qxg5 {[%emt 0:00:26]} Qa3 {[%emt 0:05:42]} 30. h4 {[%emt 0:00:54]} Qf8 {[%emt 0:02:13]} 31. Qg4 {[%emt 0:04:34]} Kc7 {[%emt 0:01:35]} 32. h5 {[%emt 0:02:08]} Rf7 {[%emt 0:00:34]} 33. Qe2 {[%emt 0:02:26]} Re7 {[%emt 0:01:39]} 34. Qf3 {[%emt 0:01:17]} Rf7 {[%emt 0:01:45]} 35. Qe2 {[%emt 0:00:04]} Re7 {[%emt 0:00:03]} 36. Qf3 {[%emt 0:00:07]} Qh6 {[%emt 0:00:03]} 37. g4 {[%emt 0:00:46]} a6 {[%emt 0:06:45]} 38. b4 {[%emt 0:01:10]} Kb8 {[%emt 0:00:41]} 39. c5 {[%emt 0:00:10]} Bc7 {[%emt 0:00:03]} 40. Rxd4 {[%emt 0:00:14]} Qe6 {[%emt 0:00:19]} 41. Qd5 {[%emt 0:02:29]} Qe2 {[%emt 0:01:55]} 42. h6 {[%emt 0:00:38]} Re3 {[%emt 0:00:01]} 43. Kg1 {[%emt 0:02:06]} Bh2+ {[%emt 0:00:51]} 44. Kg2 {[%emt 0:03:22]} 0-1

[Event "2nd Late Dr Abul K C Chess-ch A 2022"]
[Site "Dhaka"]
[Date "2022.07.08"]
[Round "8.2"]
[White "Rahman, Ziaur"]
[Black "Anata, Choudhury"]
[Result "1-0"]
[ECO "D03"]
[WhiteElo "2424"]
[BlackElo "2207"]
[Annotator "TA"]
[PlyCount "61"]
[EventDate "2022.07.03"]
[EventCountry "BAN"]
[SourceTitle "playchess.com"]
[Source "ChessBase"]
[SourceQuality "1"]
[TimeControl "5400+30"]

{[%evp 18,61,36,25,52,43,49,43,43,46,47,48,58,59,52,44,103,96,108,100,104,112,160,157,190,207,211,133,300,165,137,166,357,347,334,146,139,139,152,144,148,85,145,143,1270,1203]} 1. Nf3 {[%emt 0:00:03]} c5 {[%emt 0:00:12]} 2. e3 {[%emt 0:00:16]} g6 {[%emt 0:00:31]} 3. d4 {[%emt 0:00:16]} cxd4 {[%emt 0:01:12]} 4. exd4 {[%emt 0:00:11]} Nf6 {[%emt 0:00:13]} 5. Bd3 {[%emt 0:03:43]} d5 {[%emt 0:00:18]} 6. O-O {[%emt 0:00:11]} Bg7 {[%emt 0:00:11]} 7. c3 {[%emt 0:01:08]} Qc7 {[%emt 0:02:34]} 8. Re1 {[%emt 0:01:26]} Nc6 {[%emt 0:01:15]} 9. Bg5 {[%emt 0:01:06]} O-O {[%emt 0:01:22]} 10. Nbd2 {[%emt 0:00:37]} Bf5 {[%emt 0:02:11] D03: 1 d4 d5 2 Nf3 Nf6 3 Bg5, including Torre Attack with early ...d5.} 11. Bxf5 {[%emt 0:02:14]} gxf5 {[%emt 0:00:08]} 12. Nf1 {[%emt 0:00:24]} Ne4 {[%emt 0:01:14] White is slightly better.} 13. Ng3 {[%emt 0:01:05]} e6 {[%emt 0:02:19]} 14. Nh5 {[%emt 0:01:51]} Nxg5 15. Nxg5 {[%emt 0:00:12] Re3 is the strong threat.} Qe7 {[%emt 0:04:25]} 16. f4 {[%emt 0:09:54] [#]} Bh6 $146 {[%emt 0:03:19]} (16... Bf6 $14) ({Predecessor:} 16... h6 17. Nf3 Kh8 18. Ne5 Rg8 19. Re3 Bf8 20. Rh3 Nxe5 21. fxe5 b5 22. a3 a5 {1-0 (36) Taimanov,M (2540)-Padevsky,N (2480) Plovdiv 1975}) 17. h4 $16 {[%emt 0:01:57]} Kh8 {[%emt 0:05:14]} 18. Qd3 {[%emt 0:05:04][%cal Og2g4]} Rg8 {[%emt 0:03:18]} 19. g4 {[%emt 0:02:40][%cal Bg2g4,Bg4f5,Bf5f6][%mdl 32]} Bxg5 {[%emt 0:01:04]} (19... Qf8 $142) 20. fxg5 {[%emt 0:02:00]} (20. hxg5 fxg4 21. Kg2 (21. Nf6 Rg6 $11) 21... Rg6 $16) 20... h6 {[%emt 0:02:45]} 21. gxf5 {[%emt 0:07:59] Black must now prevent f6.} ({Don't play} 21. Nf6 Rg7 22. Re2 (22. gxh6 $2 Rg6 $19) 22... fxg4) 21... hxg5 {[%emt 0:04:40]} 22. f6 {[%emt 0:02:27]} gxh4+ $2 {[%emt 0:05:05]} (22... Qf8 $16 {was called for.}) 23. Kh1 {[%emt 0:01:13]} (23. Kf2 $142 Qf8 24. Rh1) 23... Qf8 $18 {[%emt 0:14:49] Threatens to win with ...Qh6.} 24. Ng7 $1 {[%emt 0:11:28] White is much more active.} Ne7 $2 {[%emt 0:07:54]} (24... Rxg7 {might work better.} 25. fxg7+ Qxg7) 25. Rg1 {[%emt 0:06:08]} ({Weaker is} 25. Re5 Rxg7 26. Rh5+ Kg8 $18) 25... Ng6 {[%emt 0:01:58] [#]} 26. Nxe6 $40 {[%emt 0:01:35][%mdl 128] White goes for the king.} fxe6 $16 {[%emt 0:13:33]} 27. Rxg6 {[%emt 0:00:08]} Rxg6 {[%emt 0:00:08]} 28. Qxg6 {[%emt 0:00:03] White wants to mate with Qh5+.} Qg8 {[%emt 0:00:08]} 29. Qh5+ {[%emt 0:04:23]} Qh7 {[%emt 0:01:02] [#]} 30. Qe5 {[%emt 0:00:40]} Qf7 $2 {[%emt 0:03:46][%mdl 8192]} (30... Qe4+ $16 31. Qxe4 dxe4) 31. Rf1 {[%emt 0:01:55] Weighted Error Value: White=0.26 (precise) /Black=0.32} 1-0